[Event "Lliga Catalana DH 2023"]
[Site "Catalonia"]
[Date "2023.02.25"]
[Round "6.9"]
[White "Pang, Khai Jie Ryan"]
[Black "Gonzalez Garcia, Marc"]
[Result "1/2-1/2"]
[ECO "C05"]
[WhiteElo "1841"]
[BlackElo "2143"]
[Annotator "TA"]
[PlyCount "74"]
[EventDate "2023.01.24"]
[EventType "team-tourn"]
[EventCountry "ESP"]
[SourceTitle "playchess.com"]
[Source "ChessBase"]
[SourceQuality "1"]
[TimeControl "40/5400+30:1800+30"]

{[%evp 12,74,14,0,-2,-20,39,38,35,19,23,9,37,0,52,52,55,55,35,14,44,23,38,0,-4,0,0,0,0,0,0,0,35,37,121,121,125,127,125,126,133,121,399,373,1443,191,636,-1613,1250,0,614,-1439,864,0,547,113,105,108,115,105,96,88,243,192,200]} 1. e4 e6 2. d4 d5 3. Nd2 c5 4. Ngf3 Nf6 5. e5 Nfd7 6. c3 b6 7. h4 {[%cal Bh2h4,Bh4h5,Bh5h6][%mdl 32]} Be7 {C05: French Tarrasch: 3...Nf6 4 e5 Nfd7, 5 f4 and 5 Bd3 sidelines.} 8. h5 {[#]} f6 $146 (8... h6 $11) ({Predecessor:} 8... Ba6 9. Bxa6 Nxa6 10. Qe2 Nab8 11. h6 g6 12. Nf1 Nc6 13. Ne3 Rc8 14. a3 cxd4 15. cxd4 {1-0 Jones,G (2677)-Rustemov,A (2525) Titled Tuesday intern op 25th May blitz 2021 (4)}) 9. h6 $14 g6 {White is slightly better.} 10. exf6 Bxf6 11. Bd3 O-O 12. O-O {[%cal Od2e4]} (12. Ne4 {is more complex.} Nc6 13. Nxf6+ Nxf6 14. Kf1) 12... e5 (12... cxd4 $11 13. cxd4 Nc6) 13. dxe5 Nxe5 14. Nxe5 Bxe5 15. Nf3 (15. Ne4 $5 {[%cal Rc1g5]}) 15... Bg4 {...Bxf3 is the strong threat.} 16. Be2 Bf6 17. Nh2 (17. Bf4 $5 {[%cal Rf4c7]}) 17... Bxe2 18. Qxe2 Qd7 {Dodges Qe6+} 19. Ng4 Nc6 20. Nxf6+ Rxf6 21. Re1 Kf7 22. Bg5 Re6 (22... Rf5 $1 $14 23. f4 Re8) 23. Qf3+ $1 $16 Kg8 24. Rxe6 Qxe6 25. Rd1 d4 26. cxd4 {[%cal Bc3d4,Bd4d5][%mdl 32]} Rf8 $2 {[%mdl 8192]} (26... cxd4 $16 27. Rc1 Rc8) 27. d5 $1 $18 Qe5 (27... Qc8 28. Qe4 Re8) 28. Qe3 $2 (28. Qxf8+ Kxf8 29. dxc6) 28... Qd6 $2 {[#]} (28... Qxe3 29. fxe3 (29. Bxe3 Rd8 $14) 29... Ne5) 29. Qf3 $4 {[%mdl 8192]} Qe5 $4 {[%mdl 8192]} (29... Rxf3 $19 30. gxf3 Nd4) 30. Qe3 $40 {[%mdl 128] White has some attack.} (30. Qxf8+ $142 Kxf8 31. dxc6) 30... Qd6 $1 {[#]} 31. Qf3 $4 {[%mdl 8192]} Qe5 $4 {[%mdl 8192]} (31... Rxf3 $19 32. gxf3 Nd4) 32. Qe3 Qd6 33. Qe6+ ({Inferior is} 33. dxc6 Qxd1+ 34. Kh2 Qd6+ 35. f4 Qxc6 $11) (33. Qe1 $18 {and White stays clearly on top.} Nd4 34. Be7 Qxd5 35. Bxf8 Kxf8 36. Qe3) 33... Qxe6 $16 34. dxe6 {And now Rd7 would win.} Nd4 35. e7 Re8 36. Bf6 Ne6 $2 (36... Kf7 $16 37. Bxd4 cxd4) 37. g4 Kf7 {Weighted Error Value: White=1.31/Black=0.57} 1/2-1/2

[Event "Lliga Catalana DH 2023"]
[Site "Catalonia"]
[Date "2023.02.25"]
[Round "6.10"]
[White "Salinas Tomas, Daniel"]
[Black "Hoyas Cebrian, Lucas"]
[Result "1-0"]
[ECO "A52"]
[WhiteElo "2147"]
[BlackElo "1914"]
[Annotator "TA"]
[PlyCount "91"]
[EventDate "2023.01.24"]
[EventType "team-tourn"]
[EventCountry "ESP"]
[SourceTitle "playchess.com"]
[Source "ChessBase"]
[SourceQuality "1"]
[TimeControl "40/5400+30:1800+30"]

{[%evp 10,91,37,20,43,33,70,43,51,52,42,35,41,34,69,70,99,53,70,69,74,68,101,104,111,104,125,90,90,90,103,103,103,103,105,95,175,171,184,182,175,162,163,164,162,150,148,0,168,177,182,164,231,239,245,195,362,350,550,482,466,463,462,462,408,354,963,289,362,360,850,392,301,299,1348,1302,1250,1237,1165,994,1836,1799,6495,5610]} 1. d4 {[%emt 0:00:04]} Nf6 {[%emt 0:07:20]} 2. c4 {[%emt 0:00:10]} e5 {[%emt 0:00:14]} 3. dxe5 {[%emt 0:00:13]} Ng4 {[%emt 0:00:02]} 4. Nf3 {[%emt 0:03:15]} Nc6 {[%emt 0:00:02]} 5. e3 {[%emt 0:00:40]} Ngxe5 {[%emt 0:00:47]} 6. Be2 {[%emt 0:00:33]} d6 {[%emt 0:02:31] A52: Budapest Gambit.} 7. Nc3 {[%emt 0:01:42]} Be6 {[%emt 0:01:16]} 8. b3 {[%emt 0:01:20]} (8. Qb3 $5 {[%cal Rf3e5]}) 8... g6 {[%emt 0:00:20] White is slightly better.} 9. Bb2 {[%emt 0:00:21]} Bg7 {[%emt 0:00:02]} 10. O-O {[%emt 0:00:51]} O-O {[%emt 0:00:16]} 11. Qd2 {[%emt 0:00:45] [#]} Qf6 $146 {[%emt 0:07:27]} ({Predecessor:} 11... Nxf3+ 12. Bxf3 Be5 13. Bxc6 bxc6 14. f4 Bg7 15. Ne4 Qe7 16. Bxg7 Kxg7 17. Qc3+ f6 {1-0 Corvi,M (2284)-Proietti Cobas,J (1714) Rome Lazio op 28th 2021 (1)}) 12. Nd4 {[%emt 0:09:16]} (12. Nxe5 {simplifies} Qxe5 13. f4 Qa5 14. Rad1) 12... Qh4 {[%emt 0:04:03]} 13. Nd5 {[%emt 0:15:48]} (13. Rae1 $16) 13... Bxd5 {[%emt 0:25:13]} 14. cxd5 {[%emt 0:00:06]} Nxd4 {[%emt 0:00:29]} 15. Bxd4 {[%emt 0:00:08]} c5 {[%emt 0:02:09]} 16. dxc6 {[%emt 0:00:57]} bxc6 {[%emt 0:02:46]} 17. Rac1 {[%emt 0:04:01][%cal Ba1c1,Bc1c3,Bc3d3,Bd3d4][%mdl 32]} Rfd8 {[%emt 0:03:55]} 18. Rfd1 {[%emt 0:01:28]} c5 {[%emt 0:02:38]} 19. Bc3 {[%emt 0:04:32]} Ng4 {[%emt 0:03:49]} 20. Bxg4 {[%emt 0:03:04]} Bxc3 {[%emt 0:00:13]} 21. Rxc3 {[%emt 0:01:43]} Qxg4 {[%emt 0:00:05]} 22. Rd3 {[%emt 0:00:07]} c4 {[%emt 0:01:59] [#]} (22... a5 $16 {was worth a try.}) 23. Rd4 $1 $18 {[%emt 0:00:12]} (23. Rxd6 $6 Rxd6 24. Qxd6 c3 $14) 23... Qe6 {[%emt 0:03:59]} 24. Rxc4 {[%emt 0:00:19]} (24. bxc4 Rac8 $16) (24. Rxd6 $6 Rxd6 25. Qxd6 Qxd6 26. Rxd6 Rb8 $14) 24... Rac8 {[%emt 0:01:39]} 25. Rxc8 {[%emt 0:01:23]} Rxc8 {[%emt 0:02:31][%mdl 4096] Endgame KQR-KQR} 26. h3 {[%emt 0:00:33]} (26. Qxd6 $2 Qxd6 27. Ra1 Qd2 $19) 26... Rc6 {[%emt 0:00:58]} 27. Qb4 {[%emt 0:05:42]} Ra6 {[%emt 0:03:44]} 28. Qd2 {[%emt 0:03:32] White is more active.} ({Better is} 28. Rd4 $16) 28... h5 $2 {[%emt 0:02:15]} (28... Rc6 $1 $11 {and Black is okay.}) 29. Rc1 {[%emt 0:00:20]} d5 {[%emt 0:00:40]} 30. Rc5 {[%emt 0:02:58]} Rd6 {[%emt 0:01:18]} (30... Qe5 $142 31. f4 (31. Qxd5 Qxd5 32. Rxd5 Rxa2 $16) (31. Rxd5 Qa1+ 32. Qd1 Rxa2 $16) 31... Qa1+ 32. Kh2 d4 33. Rc8+ (33. exd4 Rxa2 34. Rc8+ Kh7 $11) (33. Qxd4 Qxd4 34. exd4 Rxa2 $14) 33... Kh7) 31. Qd4 {[%emt 0:00:46]} a6 {[%emt 0:04:21]} 32. Qc3 {[%emt 0:01:22] [#] Hoping for Rc8+.} f6 $2 {[%emt 0:01:19]} (32... Kh7 {might work better.} 33. f3 (33. Rc8 d4 $16) 33... g5) 33. Rc7 {[%emt 0:01:35]} Qe5 {[%emt 0:04:12]} (33... d4 {keeps fighting.} 34. Qb4 Rd7) 34. Rc8+ {[%emt 0:00:31]} Kf7 {[%emt 0:01:29]} 35. Qc7+ {[%emt 0:03:09]} Qe7 {[%emt 0:00:17]} 36. Qb8 {[%emt 0:00:20]} f5 {[%emt 0:05:01]} 37. Qb4 {[%emt 0:03:41]} Qe6 $2 {[%emt 0:03:16]} (37... d4 38. exd4 Rd8 39. Qxe7+ Kxe7) 38. Qc3 $2 {[%emt 0:02:42]} (38. Ra8 Qe7 39. Qb8) 38... Qf6 {[%emt 0:02:22]} 39. Qc5 {[%emt 0:02:02] Strongly threatening Qa7+.} ({But not} 39. Qc7+ Qe7 40. Qb8 d4 41. exd4 (41. Rh8 Kg7 $18) 41... Rxd4 $18) 39... Qe6 $2 {[%emt 0:01:08]} (39... Qe7 40. Rh8 Kg7) 40. Qa7+ {[%emt 0:01:31]} (40. Rh8 $142) 40... Rd7 {[%emt 0:00:05]} 41. Qd4 {[%emt 0:31:00] Qh8 would be deadly.} ({Much less strong is} 41. Qc5 Qd6 42. Qd4 Rc7 43. Rxc7+ Qxc7 44. Qxd5+ Kf6 $18) 41... Ke7 $2 {[%emt 0:31:26]} (41... Re7) 42. Qg7+ {[%emt 0:04:59] White is clearly winning.} Kd6 {[%emt 0:00:20]} 43. Qc3 {[%emt 0:00:05] White threatens Rc6+ and mate.} Ke7 {[%emt 0:01:25]} 44. Rc6 {[%emt 0:00:01] White wants to mate with Qg7+.} Rd6 {[%emt 0:00:32]} 45. Qg7+ {[%emt 0:00:06]} Kd8 {[%emt 0:00:22]} 46. Qc7+ {[%emt 0:00:05] Weighted Error Value: White=0.43/Black=0.38} 1-0

[Event "Lliga Catalana DH 2023"]
[Site "Catalonia"]
[Date "2023.02.25"]
[Round "6.10"]
[White "Mateu Guiu, Esteve"]
[Black "Ano Pla, Gerard"]
[Result "1-0"]
[ECO "E66"]
[WhiteElo "2036"]
[BlackElo "2190"]
[Annotator "TA"]
[PlyCount "119"]
[EventDate "2023.01.24"]
[EventType "team-tourn"]
[EventCountry "ESP"]
[SourceTitle "playchess.com"]
[Source "ChessBase"]
[SourceQuality "1"]
[TimeControl "40/5400+30:1800+30"]

{[%evp 26,119,46,45,54,54,51,60,100,92,110,106,174,183,199,199,320,319,309,320,322,277,310,300,372,353,503,531,567,551,556,521,604,543,880,882,881,878,871,867,885,844,856,806,841,761,822,807,1057,1035,802,822,1621,1468,1593,1622,1284,1305,1918,1873,2047,2008,1912,1811,1922,1746,1780,1754,1477,1820,6219,4104,2329,1739,6343,4922,4157,5818,4033,3247,29979,29980,29980,29981,29981,29982,29982,29983,29983,29984,29987,29985,29985,29986,29990,29991]} 1. d4 d6 2. Nf3 g6 3. c4 Bg7 4. g3 Nf6 5. Bg2 O-O 6. Nc3 c5 7. O-O Nc6 8. d5 Na5 9. Nd2 Rb8 10. Rb1 a6 11. b3 b5 12. Bb2 bxc4 13. bxc4 Bd7 14. Qc2 Qc7 {E66: King's Indian: Fianchetto: 6...c5 7 0-0 Nc6 8 d5.} 15. Nce4 Nxe4 16. Bxe4 {[#]} e5 $146 {White is slightly better.} ({Predecessor:} 16... Bxb2 17. Rxb2 Rxb2 18. Qxb2 Rb8 19. Qc3 Bh3 20. Bg2 Bd7 21. e4 Qb6 22. e5 Qb4 {0-1 Khipkhenov,I (2055)-Tunik,S (2140) Irkutsk Ermolaev Memorial 7th 2013 (6)}) 17. Bc3 f5 18. Bg2 f4 (18... Ra8 $16) 19. Rxb8 $18 {[%mdl 64] [#] Deflection} Rxb8 20. gxf4 Re8 (20... exf4 $142 21. Bxg7 Kxg7) 21. fxe5 Bxe5 22. Bxe5 Rxe5 23. e3 {[%cal Be2e3,Be3e4,Be4e5,Be5e6][%mdl 32]} Qd8 24. Qc3 Bf5 25. f4 Re8 (25... Re7 {was necessary.} 26. e4 Bg4) 26. e4 Bg4 27. e5 Bf5 28. e6 Nb7 29. Be4 Qa5 30. Qxa5 Nxa5 31. Bxf5 gxf5 {[%mdl 4096] Endgame KRN-KRN} 32. Rb1 Kg7 33. Rb6 Ra8 34. Rxd6 Kf6 35. Rb6 Rg8+ 36. Kf2 Rg4 37. Kf3 Rh4 38. Rxa6 Nb7 39. Ra7 Nd6 40. Rd7 Rh3+ 41. Kg2 Rd3 42. Rxd6 Rxd2+ {KR-KR} 43. Kf3 {[#] aiming for Rd7.} Rd3+ 44. Ke2 Rd4 45. Rd7 {Black must now prevent Rf7+.} Rxf4 46. Rf7+ Kg6 47. Kd3 h5 48. Kc3 {Threatening mate with Rf8.} Rf3+ 49. Kc2 Re3 50. a4 {[%cal Ba2a4,Ba4a5][%mdl 32] Intending a5 and mate.} Re4 51. Kd3 {White wants to mate with a5.} Rd4+ 52. Kc3 {a5 would kill now.} Rd1 53. a5 {White mates.} Rc1+ 54. Kb3 Rb1+ 55. Kc2 Rb4 56. Kc3 Ra4 57. d6 {[%cal Bd5d6,Bd6d7][%mdl 32]} Rxa5 58. d7 Ra3+ 59. Kb2 Rd3 60. Rf8 {White took control after the opening.   Weighted Error Value: White=0.04 (flawless) /Black=0.55} 1-0